bitfinex-derivatives/quotes_SOLF0:USTF0_20240920
["timestamp","ask_amount","ask_price","bid_price","bid_amount"]
[1726801798241,3.5107631,143.12,143.07,10.74]
[1726801798242,3.4939,143.09,143.07,10.74]
[1726801798842,3.494,143.08,143.07,10.74]
[1726801799043,4.91777108,143.11,143.07,14.2342]
[1726801799236,1.3846,143.11,143.09,10.74]
[1726801799442,4.8341,143.12,143.1,10.74]
[1726801799637,1.3409,143.12,143.1,10.74]
[1726801800046,3.4932,143.11,143.09,10.74]
[1726801800447,3.4932,143.11,143.09,14.2337]
[1726801800648,10.74,143.15,143.1,10.74]
[1726801801851,10.74,143.13,143.09,10.74]
[1726801802046,10.74,143.12,143.08,10.74]
[1726801802238,14.25838676,143.11,143.07,10.74]
[1726801802438,10.74,143.11,143.07,10.74]
[1726801802644,3.4937,143.09,143.07,10.74]
[1726801802847,14.26153286,143.11,143.06,14.2344]
[1726801803647,14.26153286,143.11,143.06,10.74]
[1726801804244,14.26153286,143.11,142.98,1.3601]
[1726801804245,10.74,143.07,143.01,6.85959714]
[1726801804449,10.74,143.04,143.01,6.85959714]
[1726801804660,10.74,143.03,143.0,10.74]
[1726801805250,10.74,143.02,142.95,1.4036]
[1726801805550,10.74,143.02,142.98,10.74]
[1726801805946,16.79,143.04,142.96,16.79]
[1726801806140,1.3834,143.03,142.96,16.79]
[1726801806354,3.55137801,143.02,142.96,16.79]
[1726801806546,3.496,143.0,142.96,20.2868]
[1726801806746,16.79,143.02,142.92,16.79]
[1726801807152,16.79,143.0,142.92,16.79]
[1726801807655,3.4967,142.97,142.94,3.4974]
[1726801808251,16.79,143.0,142.91,139.8]
[1726801808555,16.79,142.98,142.9,18.1169]
[1726801809251,3.497,142.96,142.92,3.4977]
[1726801810154,16.79,142.96,142.89,1.3684]
[1726801810451,1.3553,142.97,142.9,16.79]
[1726801810644,3.497,142.96,142.92,3.4977]
[1726801810843,3.497,142.96,142.9,16.79]
[1726801811353,3.497,142.96,142.92,3.4978]
[1726801812153,3.4972,142.95,142.92,3.4978]
[1726801813848,3.4974,142.94,142.91,3.4981]
[1726801814751,3.4972,142.95,142.92,3.4977]
[1726801814949,1.4082,142.96,142.89,16.79]
[1726801815454,1.4082,142.96,142.93,3.4975]
[1726801816559,1.4082,142.96,142.89,16.79]
[1726801817257,1.4082,142.96,142.93,3.4975]
[1726801819060,1.4082,142.96,142.94,3.4974]
[1726801820657,4.9052,142.96,142.93,3.4976]
[1726801820860,1.4082,142.96,142.93,3.4976]
[1726801822262,4.9051,142.96,142.93,3.4976]
[1726801823557,1.4082,142.96,142.94,3.4974]
[1726801825856,4.9051,142.96,142.94,3.4974]
[1726801826060,10.76,142.95,142.94,3.4974]
[1726801829356,10.76,142.96,142.92,10.76]
[1726801829763,3.4956,143.02,142.95,10.76]
[1726801829960,10.76,143.0,142.95,10.76]
[1726801830965,10.76,142.99,142.95,10.76]
[1726801831763,3.4955,143.02,142.96,10.76]
[1726801832172,10.76,143.01,142.96,10.76]
[1726801832872,3.4952,143.03,143.0,3.4959]
[1726801833064,10.76,143.02,143.0,3.4959]
[1726801834873,10.76,143.02,142.93,2.7841]
[1726801834874,10.76,143.01,142.99,3.4961]
[1726801835075,10.76,143.0,142.93,2.7841]
[1726801835269,10.76,143.0,142.97,3.4965]
[1726801835666,3.4958,143.01,142.97,3.4965]
[1726801835871,10.76,143.0,142.97,3.4965]
[1726801836070,10.76,143.0,142.98,3.4964]
[1726801837583,10.76,142.99,142.97,3.4965]
[1726801838675,3.49062613,143.02,142.93,2.7841]
[1726801838881,10.76,142.96,142.9,1.2047]
[1726801839071,10.76,142.97,142.92,10.76]
[1726801839477,3.4966,142.98,142.94,3.4972]
[1726801839670,10.76,142.99,142.95,10.76]
[1726801839875,10.76,142.98,142.94,10.76]
[1726801840077,10.76,142.96,142.91,10.76]
[1726801840275,10.76,142.95,142.91,10.76]
[1726801840978,10.76,142.95,142.93,3.4975]
[1726801841869,3.4967,142.97,142.94,3.4974]
[1726801842072,10.76,142.95,142.94,3.4974]
[1726801842276,10.76,142.95,142.9,11.9647]
[1726801842881,10.76,142.95,142.93,3.4975]
[1726801844472,3.497,142.96,142.93,3.4975]
[1726801844677,10.76,142.96,142.93,3.4975]
[1726801845385,10.76,142.96,142.95,3.4972]
[1726801845778,10.76,142.96,142.94,3.4973]
[1726801847383,4.1532,143.01,142.95,10.76]
[1726801847585,10.76,142.99,142.95,10.76]
[1726801848384,10.76,142.99,142.96,3.4969]
[1726801848883,10.76,142.99,142.97,3.4966]
[1726801852592,10.76,142.98,142.97,3.4966]
[1726801858193,3.4962,142.99,142.97,3.4966]
[1726801861396,4.1532,143.01,142.96,10.76]
[1726801861592,10.76,143.0,142.96,10.76]
[1726801862397,10.76,143.0,142.98,3.4963]
[1726801863898,14.256,143.0,142.98,3.4963]
[1726801865298,2.7866,143.08,142.98,10.76]
[1726801865598,10.76,143.03,142.98,10.76]
[1726801865800,10.76,143.02,142.99,10.76]
[1726801865996,10.76,143.0,142.91,6.9962]
[1726801866195,10.76,143.0,142.95,10.76]
[1726801866397,10.76,143.0,142.98,3.4963]
[1726801866998,10.76,143.0,142.99,3.4962]
[1726801867197,10.76,143.02,142.98,10.76]
[1726801867396,10.76,143.04,142.99,10.76]
[1726801867602,10.76,143.04,143.01,3.4955]
[1726801867798,10.76,143.02,142.96,1.3687]
[1726801868108,10.76,143.0,142.95,10.76]
[1726801868995,14.256,143.0,142.98,3.4964]
[1726801869196,10.76,143.01,142.96,10.76]
[1726801869600,10.76,143.02,142.98,10.76]
[1726801870301,14.2555,143.02,142.99,3.496]
[1726801870897,10.76,143.02,143.0,3.4957]
[1726801871594,14.2555,143.02,142.99,3.4961]
[1726801871995,1.3865,143.07,143.0,10.76]
[1726801872202,1.3865,143.07,143.02,3.4953]
[1726801872203,3.4949,143.05,143.02,3.4953]
[1726801872396,14.2549,143.05,143.02,3.4953]
[1726801872799,1.3865,143.07,143.02,10.76]
[1726801872997,12.1465,143.07,143.02,10.76]
[1726801873299,10.76,143.09,143.05,10.76]
[1726801873493,10.76,143.09,143.06,3.4944]
[1726801873902,10.76,143.09,143.05,10.76]
[1726801874099,14.2538,143.09,143.05,10.76]
[1726801874299,10.76,143.08,143.04,10.76]
[1726801874995,10.76,143.08,143.06,3.4944]
[1726801875303,14.2538,143.09,143.06,3.4944]
[1726801876505,14.2538,143.09,143.05,10.76]
[1726801877907,10.76,143.07,143.03,10.76]
[1726801878807,10.76,143.07,143.04,3.4948]
[1726801879404,14.2542,143.07,143.04,3.4948]
[1726801879605,10.76,143.05,143.01,10.76]
[1726801880003,14.2547,143.05,143.01,10.76]
[1726801880207,10.76,143.03,142.99,10.76]
[1726801880614,14.2552,143.03,143.0,3.4958]
[1726801880803,14.2552,143.03,142.99,10.76]
[1726801881108,10.76,143.03,143.0,3.4958]
[1726801881508,10.76,143.03,142.99,10.76]
[1726801881708,10.76,143.03,143.0,3.4959]
[1726801882505,10.76,143.01,142.98,10.76]
[1726801882716,10.76,143.0,142.96,10.76]
[1726801883013,14.2561,143.0,142.95,10.76]
[1726801883214,10.76,143.0,142.95,10.76]
[1726801883522,10.76,143.0,142.97,3.4966]
[1726801883911,14.2561,143.0,142.95,10.76]
[1726801884715,14.2561,143.0,142.97,3.4966]
[1726801886015,14.2557,143.01,142.96,10.76]
[1726801886214,2.6685,143.02,142.96,10.76]
[1726801886516,10.76,143.01,142.96,10.76]
[1726801887814,14.2557,143.01,142.98,3.4963]
[1726801888215,10.76,143.0,142.96,10.76]
[1726801888417,10.76,142.99,142.96,3.4968]
[1726801888917,14.2564,142.99,142.95,14.257]
[1726801889119,10.76,142.99,142.95,14.257]
[1726801889311,10.76,142.99,142.95,10.76]
[1726801889710,14.2562,142.99,142.96,3.4968]
[1726801889916,2.6685,143.02,142.95,10.76]
[1726801890115,10.76,143.0,142.95,10.76]
[1726801890315,10.76,143.0,142.96,10.76]
[1726801890717,10.76,143.0,142.97,3.4965]
[1726801890718,3.496,143.0,142.97,3.4965]
[1726801894325,14.2557,143.01,142.98,3.4963]
[1726801900727,3.496,143.0,142.98,3.4963]
[1726801901123,3.496,143.0,142.97,14.2565]
[1726801901419,14.256,143.0,142.97,3.4965]
[1726801902528,10.76,143.0,142.98,3.4963]
[1726801902733,14.2558,143.01,142.98,3.4963]
[1726801903329,3.4959,143.0,142.98,3.4963]
[1726801904333,3.4959,143.0,142.97,3.4966]
[1726801907125,2.6685,143.02,142.96,10.76]
[1726801907330,2.7832,143.09,143.01,10.76]
[1726801907534,10.76,143.06,143.02,10.76]
[1726801907731,10.76,143.07,143.03,10.76]
[1726801908323,10.76,143.07,142.92,141.2887]
[1726801908324,12.0878,143.08,143.04,10.76]
[1726801908634,12.0878,143.08,143.02,10.76]
[1726801908635,10.76,143.06,143.02,10.76]
[1726801908830,14.2545,143.06,143.02,10.76]
[1726801909135,10.76,143.06,143.02,10.76]
[1726801909933,10.76,143.05,143.01,14.2557]
[1726801910334,10.76,143.05,143.01,10.76]
[1726801911037,10.76,143.04,142.98,3.4963]
[1726801911236,10.76,143.04,142.87,226.0]
[1726801911237,10.76,143.01,142.97,10.76]
[1726801913836,10.76,143.01,142.97,14.2566]
[1726801915835,10.76,143.01,142.97,3.4966]
[1726801916037,10.76,143.0,142.96,14.2569]
[1726801916635,10.76,143.0,142.97,3.4966]
[1726801920545,10.76,143.0,142.98,3.4964]
[1726801921243,10.76,143.0,142.97,3.4966]
[1726801921638,14.256,143.0,142.96,10.76]
[1726801921845,14.256,143.0,142.96,14.2568]
[1726801922340,1.4106,143.01,142.95,14.257]
[1726801922341,10.76,142.99,142.95,14.257]
[1726801922537,10.76,142.99,142.95,10.76]
[1726801923348,14.2563,142.99,142.95,10.76]
[1726801923549,14.2563,142.99,142.96,3.4969]
[1726801923744,4.1912,143.01,142.96,10.76]
[1726801923745,1.4106,143.01,142.96,10.76]
[1726801923949,3.4955,143.02,142.98,10.76]
[1726801924146,10.76,143.03,142.99,3.496]
[1726801924336,14.2553,143.03,142.99,3.496]
[1726801924541,10.76,143.03,142.99,3.496]
[1726801924849,3.4956,143.02,142.98,14.2563]
[1726801925245,10.76,143.01,142.98,14.2563]
[1726801925845,10.76,142.99,142.9,1.2044]
[1726801926144,10.76,142.95,142.88,7.76825234]
[1726801926345,14.2573,142.95,142.91,10.76]
[1726801926553,10.76,142.94,142.91,10.76]
[1726801926850,10.76,142.94,142.9,10.76]
[1726801927652,10.76,142.94,142.91,10.76]
[1726801928142,10.76,142.94,142.91,14.258]
[1726801928648,10.76,142.93,142.86,2.67]
[1726801928952,10.76,142.93,142.9,10.76]
[1726801929741,10.76,142.94,142.9,10.76]
[1726801929947,4.2883,143.0,142.91,10.76]
[1726801930146,10.76,142.95,142.91,10.76]
[1726801930347,10.76,142.94,142.9,10.76]
[1726801930747,4.2883,143.0,142.91,3.4979]
[1726801931056,10.76,142.95,142.9,10.76]
[1726801931754,10.76,142.95,142.92,3.4978]
[1726801935256,10.76,142.95,142.93,3.4976]
[1726801936153,10.76,142.96,142.94,3.4972]
[1726801938665,14.2569,142.96,142.93,3.4976]
[1726801942464,14.2569,142.96,142.94,3.4974]
[1726801942662,4.2883,143.0,142.89,3.50748796]
[1726801942971,10.76,142.98,142.95,3.497]
[1726801943272,14.2565,142.98,142.95,3.497]
[1726801944170,10.76,142.98,142.95,3.497]
[1726801944468,10.76,142.98,142.96,3.4969]
[1726801945867,14.2566,142.98,142.96,3.4969]
[1726801949563,14.2566,142.98,142.95,3.4971]
[1726801950464,3.4966,142.98,142.95,3.4971]
[1726801950665,14.2566,142.98,142.95,3.4971]
[1726801951064,3.4967,142.97,142.94,10.76]
[1726801951268,10.76,142.95,142.77,10.5042]
[1726801951569,10.76,142.94,142.9,10.76]
[1726801951770,10.76,142.94,142.91,3.498]
[1726801951771,14.2575,142.94,142.91,3.498]
[1726801952266,3.4975,142.94,142.91,3.498]
[1726801952463,14.2575,142.94,142.91,3.498]
[1726801953262,14.2575,142.94,142.91,14.258]
[1726801953966,10.76,142.93,142.91,3.498]
[1726801954172,10.76,142.92,142.9,3.4983]
[1726801954762,4.2883,143.0,142.9,3.4983]
[1726801954967,10.76,142.93,142.9,3.4983]
[1726801955875,10.76,142.94,142.91,10.76]
[1726801956263,4.2883,143.0,142.92,3.4979]
[1726801956465,10.76,142.95,142.92,3.4979]
[1726801956973,10.76,142.94,142.91,14.2581]
[1726801957768,4.2883,143.0,142.86,2.8148]
[1726801957975,10.76,142.92,142.87,10.76]
[1726801958869,10.76,142.92,142.89,3.4985]
[1726801959072,10.76,142.92,142.88,10.76]
[1726801959374,10.76,142.93,142.9,3.4982]
[1726801960771,14.2577,142.93,142.9,3.4982]
[1726801961271,4.2883,143.0,142.89,3.4986]
[1726801961272,14.258,142.92,142.89,3.4986]
[1726801961575,4.2883,143.0,142.89,10.76]
[1726801961877,10.76,142.94,142.89,10.76]
[1726801962376,14.2576,142.94,142.91,3.498]
[1726801962874,14.2576,142.94,142.9,3.4983]
[1726801964178,3.4977,142.93,142.9,3.4983]
[1726801964476,14.2577,142.93,142.9,3.4983]
[1726801965778,10.76,142.96,142.92,10.76]
[1726801966076,4.2883,143.0,142.93,10.76]
[1726801966077,10.76,142.97,142.93,10.76]
[1726801966266,14.2566,142.98,142.94,3.4972]
[1726801966879,14.2567,142.97,142.93,14.2576]
[1726801967076,10.76,142.97,142.86,1.3513]
[1726801967271,14.2571,142.96,142.92,14.2577]
[1726801968476,10.76,142.95,142.92,3.4977]
[1726801968678,10.76,142.95,142.93,3.4976]
[1726801971679,10.76,142.94,142.9,10.76]
[1726801971875,4.2883,143.0,142.9,10.76]
[1726801971876,10.76,142.93,142.9,10.76]
[1726801972076,14.2577,142.93,142.9,3.4983]
[1726801972675,3.4973,142.95,142.91,3.498]
[1726801972873,10.76,142.94,142.91,3.498]
[1726801973480,14.2576,142.94,142.9,3.4983]
[1726801978282,14.2576,142.94,142.91,3.498]
[1726801979080,14.2573,142.95,142.92,3.4978]
[1726801979281,14.2573,142.95,142.9,10.76]
[1726801979282,10.76,142.96,142.93,10.76]
[1726801979689,10.76,142.96,142.93,14.2575]
[1726801980587,14.2569,142.96,142.93,3.4975]
[1726801980787,10.76,142.95,142.92,3.4978]
[1726801981983,14.2572,142.95,142.92,3.4978]
[1726801984194,10.76,142.95,142.92,3.4978]
[1726801985399,14.2572,142.95,142.92,3.4978]
[1726801986101,10.76,142.94,142.92,3.4978]
[1726801986401,14.2574,142.94,142.91,3.498]
[1726801986695,10.76,142.94,142.91,3.498]
[1726801987398,10.76,142.94,142.92,3.4979]
[1726801987798,10.76,142.94,142.9,10.76]
[1726801988295,10.76,142.94,142.91,3.4979]
[1726801989397,14.2575,142.94,142.91,3.4979]
[1726801993403,4.2883,143.0,142.92,10.76]
[1726801993601,10.76,142.97,142.92,10.76]
[1726801993894,14.2568,142.97,142.93,3.4974]
[1726801994898,14.2568,142.97,142.94,3.4974]
[1726801995598,4.2883,143.0,142.96,10.76]
[1726801996195,1.4044,143.0,142.98,10.76]
[1726801996402,10.76,143.02,142.98,10.76]
[1726801996801,14.30492357,143.02,142.98,10.76]
[1726801997195,17.80052357,143.02,142.98,14.2564]
[1726801998301,3.4956,143.02,142.99,3.4962]
[1726801998602,3.4956,143.02,142.93,6.35227713]
[1726801998603,10.76,143.05,143.01,10.76]
[1726801998897,10.76,143.05,143.02,3.4953]
[1726801999805,14.2547,143.05,143.02,3.4953]
[1726802000504,10.76,143.04,143.02,3.4953]
[1726802001300,10.76,143.03,143.01,3.4956]
[1726802001702,10.76,143.04,143.0,10.76]
[1726802001900,10.76,143.04,143.01,3.4956]
[1726802004602,14.255,143.04,143.01,3.4956]
[1726802005498,10.76,143.04,143.01,14.2556]
[1726802005808,10.76,143.04,143.01,3.4956]
[1726802006106,10.76,143.04,143.01,10.76]
[1726802006307,4.2219,143.06,143.03,10.76]
[1726802006504,14.9819,143.06,143.03,10.76]
[1726802006700,1.4263,143.06,143.04,3.4949]
[1726802007095,4.9208,143.06,143.03,14.255]
[1726802007498,4.9208,143.06,143.03,10.76]
[1726802007902,1.4263,143.06,143.03,10.76]
[1726802010504,1.4263,143.06,143.05,3.4947]
[1726802011101,10.76,143.07,143.05,3.4947]
[1726802011102,14.2541,143.08,143.05,3.4947]
[1726802012408,14.2541,143.08,143.06,3.4944]
[1726802013010,14.2541,143.08,143.04,10.76]
[1726802013309,14.2541,143.08,143.05,3.4946]
[1726802013610,10.76,143.08,143.05,10.76]
[1726802014512,10.76,143.08,143.06,3.4943]
[1726802015114,14.254,143.08,143.05,14.2546]
[1726802016214,14.254,143.08,143.05,3.4946]
[1726802016513,14.2542,143.07,143.04,3.4948]
[1726802020614,15.5834,143.08,143.05,3.4945]
[1726802020818,12.0893,143.08,143.04,10.76]
[1726802021116,3.4944,143.07,143.04,14.2548]
[1726802022314,14.2544,143.07,143.04,14.2548]
[1726802023416,3.4945,143.06,143.03,14.2551]
[1726802024012,3.4945,143.06,143.04,3.4949]
[1726802024921,14.2543,143.07,143.04,3.4949]
[1726802025323,3.4945,143.06,143.03,14.2551]
[1726802025915,14.2547,143.05,143.02,3.4953]
[1726802026423,3.495,143.04,143.01,14.2556]
[1726802026718,10.76,143.02,142.95,1.4421]
[1726802027017,10.76,143.02,142.98,10.76]
[1726802027222,17.68032218,143.02,142.98,14.2562]
[1726802027819,10.76,142.99,142.93,1.4452]
[1726802028017,10.76,142.99,142.95,10.76]
[1726802028218,10.76,142.99,142.96,10.76]
[1726802028819,10.76,142.99,142.95,14.2571]
[1726802029225,14.2562,142.99,142.95,14.2571]
[1726802029528,4.2129,143.01,142.97,10.76]
[1726802029921,2.8782,143.01,142.97,14.2565]
[1726802030119,1.3347,143.09,143.0,10.76]
[1726802030429,10.76,143.04,143.0,10.76]
[1726802030628,14.2551,143.04,143.0,10.76]
[1726802031129,14.2551,143.04,143.0,14.2559]
[1726802031629,3.4954,143.03,142.98,14.2563]
[1726802031831,14.20365451,143.02,142.98,14.2563]
[1726802032130,10.76,143.02,142.98,14.2563]
[1726802032634,14.2555,143.02,142.98,14.2563]
[1726802032930,10.76,143.02,142.99,3.4962]
[1726802035028,14.2555,143.02,142.99,3.4962]
[1726802035834,10.76,143.01,142.98,3.4964]
[1726802037825,14.2557,143.01,142.98,3.4964]
[1726802039632,10.76,142.99,142.94,1.3541]
[1726802039833,3.55078522,143.02,142.94,10.76]
[1726802039834,10.76,142.98,142.94,10.76]
[1726802040034,10.76,142.97,142.93,10.76]
[1726802040222,14.17438624,142.98,142.94,10.76]
[1726802040532,10.76,142.99,142.95,10.76]
[1726802041832,10.76,142.99,142.96,3.4968]
[1726802041833,14.2562,142.99,142.96,3.4968]
[1726802043532,14.2565,142.98,142.95,3.497]
[1726802043737,10.76,142.97,142.93,10.76]
[1726802044031,10.76,142.96,142.92,10.76]
[1726802044443,10.76,142.94,142.85,9.00238065]
[1726802044737,10.76,142.94,142.91,10.76]
[1726802045126,10.76,142.94,142.91,14.258]
[1726802045730,10.76,142.94,142.92,3.4979]
[1726802046640,10.76,142.96,142.93,3.4976]
[1726802047936,14.2569,142.96,142.93,3.4976]
[1726802048136,14.2569,142.96,142.92,14.2578]
[1726802049339,10.76,142.96,142.94,3.4974]
[1726802049634,10.76,142.98,142.94,10.76]
[1726802050041,14.2566,142.98,142.95,3.4971]
[1726802050336,10.76,142.99,142.95,10.76]
[1726802050536,10.76,142.99,142.95,14.2571]
[1726802050537,14.2563,142.99,142.95,14.2571]
[1726802051233,14.2563,142.99,142.96,3.4968]
[1726802052134,10.76,142.99,142.98,3.4964]
[1726802052335,10.76,143.0,142.96,10.76]
[1726802052540,10.76,142.99,142.95,10.76]
[1726802052735,14.2562,142.99,142.96,3.4968]
[1726802052934,10.76,142.99,142.95,10.76]
[1726802053541,10.76,142.99,142.96,14.2569]
[1726802055648,10.76,142.99,142.97,3.4967]
[1726802056245,3.496,143.0,142.97,3.4967]
[1726802056550,21.97747703,143.01,142.97,3.4967]
[1726802056747,21.97747703,143.01,142.98,3.4964]
[1726802057347,18.4156,143.01,142.98,3.4964]
[1726802058044,21.86449596,143.01,142.98,3.4964]
[1726802059248,14.9198,143.01,142.96,10.76]
[1726802060251,18.4156,143.01,142.97,3.4965]
[1726802061146,18.4156,143.01,142.98,3.4963]
[1726802064644,18.4156,143.01,142.96,10.76]
[1726802064645,3.47512995,143.02,142.99,3.4962]
[1726802064854,10.76,143.01,142.99,3.4962]
[1726802065150,14.33202084,143.01,142.99,3.4962]
[1726802065556,17.82782084,143.01,142.98,3.4963]
[1726802067154,3.4953,143.03,142.98,10.76]
[1726802067353,3.4953,143.03,142.99,10.76]
[1726802068153,14.2551,143.04,142.99,10.76]
[1726802068745,3.4952,143.03,143.0,3.4958]
[1726802069156,14.2552,143.03,143.0,3.4958]
[1726802071061,17.83480637,143.02,142.99,3.496]
[1726802071361,10.76,143.02,142.99,3.496]
[1726802071560,10.76,143.01,142.99,3.496]
[1726802072354,17.75822217,143.02,142.99,3.496]
[1726802072550,17.75822217,143.02,142.98,10.76]
[1726802072752,6.99822217,143.02,142.91,1.4029]
[1726802073060,17.75822217,143.02,142.98,10.76]
[1726802073759,17.75822217,143.02,142.99,3.496]
[1726802074465,14.2557,143.01,142.98,3.4963]
[1726802075554,10.76,142.99,142.91,1.4029]
[1726802075759,10.76,142.99,142.94,10.76]
[1726802077562,10.76,142.99,142.96,3.4967]
[1726802080369,10.76,142.99,142.95,3.497]
[1726802080566,10.76,142.97,142.91,1.4029]
[1726802080764,10.76,142.94,142.9,10.76]
[1726802080970,10.76,142.94,142.91,3.4981]
[1726802081467,10.76,142.94,142.9,10.76]
[1726802081663,10.76,142.94,142.92,3.4977]
[1726802081869,10.76,142.95,142.91,10.76]
[1726802082167,10.76,142.95,142.93,3.4976]
[1726802084461,10.76,142.95,142.92,3.4978]
[1726802085466,10.76,142.94,142.92,3.4978]
[1726802086373,10.76,142.94,142.9,10.76]
[1726802087273,10.76,142.94,142.91,3.4981]
[1726802088369,10.76,142.95,142.91,10.76]
[1726802088569,12.2116,142.96,142.92,10.76]
[1726802089075,12.2116,142.96,142.93,3.4975]
[1726802089572,1.4516,142.96,142.94,10.76]
[1726802089973,1.4516,142.96,142.93,10.76]
[1726802089974,12.2116,142.96,142.93,10.76]
[1726802090567,12.2116,142.96,142.93,14.2574]
[1726802091068,12.2116,142.96,142.94,3.4974]
[1726802091571,10.76,142.95,142.93,3.4975]
[1726802092471,14.2572,142.95,142.93,3.4975]
[1726802092670,10.76,142.94,142.92,3.4978]
[1726802093369,10.76,142.94,142.91,3.498]
[1726802094170,10.76,142.94,142.92,3.4978]
[1726802098381,3.4973,142.95,142.92,3.4978]
[1726802098574,14.2573,142.95,142.92,3.4978]
[1726802101184,4.9486,142.96,142.93,3.4976]
[1726802101383,15.7086,142.96,142.93,3.4976]
[1726802101979,1.426,142.99,142.94,10.76]
[1726802102183,10.76,142.98,142.94,10.76]
[1726802102579,10.76,142.98,142.95,3.497]
[1726802102580,14.2566,142.98,142.95,3.497]
[1726802103679,12.186,142.99,142.95,10.76]
[1726802104280,15.6823,142.99,142.96,3.4967]
[1726802105583,10.76,142.98,142.96,3.4967]
[1726802106688,10.76,142.97,142.9,2.8384]
[1726802106985,1.426,142.99,142.91,10.76]
[1726802106986,10.76,142.95,142.91,10.76]
[1726802107585,10.76,142.95,142.93,3.4975]
[1726802108190,14.257,142.96,142.93,3.4975]
[1726802108579,10.76,142.96,142.93,3.4975]
[1726802108981,10.76,142.97,142.94,3.4974]
[1726802109590,10.76,142.97,142.95,3.4971]
[1726802109991,15.6879,142.98,142.95,3.4971]
[1726802111488,10.76,142.97,142.95,3.4971]
[1726802111992,14.2567,142.97,142.95,3.4971]
[1726802114986,10.76,142.97,142.95,3.4971]
[1726802115187,5.02628027,143.0,142.95,10.76]
[1726802115383,15.78628027,143.0,142.95,10.76]
[1726802115589,2.8003,143.04,142.97,10.76]
[1726802115795,10.76,143.03,142.98,10.76]
[1726802116089,10.76,143.0,142.97,3.4965]
[1726802116285,10.76,143.0,142.94,10.76]
[1726802116286,10.76,142.99,142.94,10.76]
[1726802116486,3.43202393,143.0,142.91,1.4646]
[1726802116694,10.76,142.96,142.94,3.4973]
[1726802117093,10.76,142.96,142.92,10.76]
[1726802117388,10.76,142.95,142.91,10.76]
[1726802118494,10.76,142.95,142.92,3.4977]
[1726802118788,14.2572,142.95,142.9,10.76]
[1726802119184,10.76,142.93,142.86,6.35142486]
[1726802119386,10.76,142.93,142.88,10.76]
[1726802119589,10.76,142.92,142.88,10.76]
[1726802119794,10.76,142.92,142.89,3.4985]
[1726802119992,10.76,142.92,142.88,10.76]
[1726802120189,10.76,142.91,142.87,10.76]
[1726802120385,10.76,142.9,142.87,3.499]
[1726802120790,6.33132533,142.98,142.87,14.259]
[1726802120992,10.76,142.91,142.87,14.259]
[1726802121890,3.4981,142.92,142.87,3.499]